fUST/lending_fUST_20250409
["ID","MTS","AMOUNT","RATE_DAILY","PERIOD"]
[357576647,1744193432895,-154.04504102,0.00018289,2]
[357576648,1744193432904,-200.0,0.00018289,2]
[357576649,1744193432914,-382.85820457,0.00018298,2]
[357576650,1744193432924,-72657.50485577,0.00018299,2]
[357576651,1744193432940,-27796.0079186,0.00018299,2]
[357576652,1744193432949,-837.59699578,0.00018299,3]
[357576653,1744193432958,-4498.3002837,0.000183,2]
[357576670,1744193438854,-500.0,0.00018171,2]
[357576671,1744193438864,-254.92314523,0.00018171,2]
[357576672,1744193438873,-2014.40851161,0.00018299,3]
[357576689,1744193440669,-6257.73596728,0.00018299,3]
[357576690,1744193440930,-0.00122535,0.00018299,3]
[357576691,1744193440942,-877.68097442,0.00018299,3]
[357576702,1744193444042,-7395.6445671,0.00018299,3]
[357576703,1744193444052,-19374.2169833,0.000183,2]
[357576704,1744193444064,-27634.86339911,0.000183,2]
[357576705,1744193444076,-4610.4272833,0.000183,2]
[357576706,1744193444097,-10965.64000895,0.000183,2]
[357576723,1744193446578,-1024.95,0.000183,2]
[357576726,1744193637738,583.32,0.00010959,2]
[357576728,1744193984663,-182.80942083,0.00017186,2]
[357576729,1744194003546,-158.5583837,0.00017186,2]
[357576732,1744194039050,-180.02160259,0.00017014,2]
[357576733,1744194227898,-238.305508,0.00016844,2]
[357576736,1744194419597,-198.11613066,0.00016676,2]
[357576739,1744194525138,-193.2661,0.000175,4]
[357576747,1744194605522,-170.99077178,0.00016509,2]
[357576758,1744194632641,-938.9549049,0.00016509,2]
[357576759,1744194632650,-353.89134307,0.00017186,2]
[357576760,1744194632661,-210.691654,0.0001732,2]
[357576761,1744194632671,-2042.68057387,0.000175,4]
[357576762,1744194632681,-250.0,0.000179,2]
[357576763,1744194632691,-1515.0,0.00018,2]
[357576764,1744194632700,-1192.0,0.00018,2]
[357576765,1744194632710,-300.0,0.00018172,2]
[357576766,1744194632719,-500.0,0.00018173,2]
[357576767,1744194632729,-500.0,0.00018173,2]
[357576768,1744194632738,-500.0,0.00018173,2]
[357576769,1744194632748,-5453.71152834,0.00018173,2]
[357576770,1744194632757,-500.0,0.00018173,2]
[357576771,1744194632767,-500.0,0.00018173,2]
[357576772,1744194632776,-500.0,0.00018173,2]
[357576773,1744194632786,-500.0,0.00018173,2]
[357576774,1744194632795,-500.0,0.00018173,2]
[357576775,1744194632804,-203.93640968,0.00018189,2]
[357576776,1744194632814,-200.0,0.00018189,2]
[357576777,1744194632823,-160.0,0.00018198,2]
[357576778,1744194632834,-268.0007432,0.00018198,2]
[357576779,1744194632843,-500.0,0.00018198,2]
[357576780,1744194632852,-375.49231452,0.00018198,2]
[357576781,1744194632861,-500.0,0.00018198,2]
[357576782,1744194632871,-26132.46790964,0.00018199,2]
[357576783,1744194632884,-8055.14390044,0.00018199,2]
[357576784,1744194632896,-431.68,0.00018199,2]
[357576785,1744194632907,-932.21318871,0.00018199,2]
[357576852,1744194641037,-0.00433524,0.00018199,2]
[357576947,1744194674849,-177.00922822,0.00016576,2]
[357576954,1744194888351,-72.99077178,0.00016576,2]
[357576955,1744194888383,-85.57391706,0.00017193,2]
[357576968,1744195328194,-175.9051293,0.00017088,2]
[357576969,1744195349276,-246.60455311,0.00017,2]
[357576970,1744195383039,-175.9051293,0.00016999,2]
[357576971,1744195444276,-270.05515721,0.00016999,2]
[357576973,1744195503965,-300.0,0.00016999,2]
[357576974,1744195545650,3317.3,0.00018,10]
[357576976,1744195624122,-261.694492,0.00016999,2]
[357576977,1744195683371,-300.0,0.00016999,2]
[357576994,1744195803934,-300.0,0.00016999,2]
[357576995,1744195831667,-12339.98424693,0.00017,2]
[357576996,1744195831678,-2279.5780727,0.00017088,2]
[357576997,1744195831689,-334.4698181,0.00017097,2]
[357576998,1744195831700,-107.69218294,0.00017193,2]
[357576999,1744195831710,-175.99892736,0.00017999,2]
[357577000,1744195831720,-6813.03716426,0.00017999,2]
[357577001,1744195831730,-250.0,0.00018073,2]
[357577002,1744195831740,-391.34635759,0.00018073,2]
[357577003,1744195831754,-500.0,0.00018073,2]
[357577004,1744195831764,-500.0,0.00018073,2]
[357577005,1744195831774,-500.0,0.00018073,2]
[357577006,1744195831783,-541.78271111,0.00018073,2]
[357577007,1744195831793,-200.0,0.00018088,2]
[357577008,1744195831803,-152.83247939,0.00018098,2]
[357577009,1744195831814,-187.60052024,0.00018098,2]
[357577010,1744195831824,-47924.43608216,0.00018099,2]
[357577025,1744195832010,-6845.20572268,0.00018099,3]
[357577027,1744195832024,-2007.73760735,0.00018099,3]
[357577029,1744195832037,-3680.9044557,0.00018099,3]
[357577031,1744195832048,-837.59699578,0.00018099,3]
[357577033,1744195832058,-160.0,0.00018099,3]
[357577035,1744195832069,-500.02099349,0.00018099,2]
[357577037,1744195832080,-294.988398,0.00018099,2]
[357577039,1744195832090,-200.0,0.00018099,10]
[357577041,1744195832100,-200.0,0.00018099,10]
[357577044,1744195832111,-200.0,0.00018099,10]
[357577047,1744195832121,-200.0,0.00018099,10]
[357577050,1744195832130,-200.0,0.00018099,10]
[357577053,1744195832140,-200.0,0.00018099,10]
[357577056,1744195832150,-200.0,0.00018099,10]
[357577058,1744195832159,-200.0,0.00018099,10]
[357577060,1744195832169,-200.0,0.00018099,10]
[357577061,1744195832176,-200.0,0.00018099,10]
[357577063,1744195832183,-200.0,0.00018099,10]
[357577064,1744195832191,-200.0,0.00018099,10]
[357577065,1744195832199,-200.0,0.00018099,10]
[357577066,1744195832207,-200.0,0.00018099,10]
[357577067,1744195832214,-200.0,0.00018099,10]
[357577068,1744195832222,-200.0,0.00018099,10]
[357577069,1744195832231,-200.0,0.00018099,10]
[357577070,1744195832241,-200.0,0.00018099,10]
[357577071,1744195832255,-200.0,0.00018099,10]
[357577072,1744195832265,-200.0,0.00018099,10]
[357577073,1744195832274,-200.0,0.00018099,10]
[357577074,1744195832284,-200.0,0.00018099,10]
[357577077,1744195832294,-200.0,0.00018099,10]
[357577078,1744195832304,-200.0,0.00018099,10]
[357577081,1744195832314,-200.0,0.00018099,10]
[357577083,1744195832324,-200.0,0.00018099,10]
[357577085,1744195832334,-200.0,0.00018099,10]
[357577087,1744195832344,-200.0,0.00018099,10]
[357577089,1744195832353,-200.0,0.00018099,10]
[357577091,1744195832363,-200.0,0.00018099,10]
[357577093,1744195832373,-200.0,0.00018099,10]
[357577095,1744195832382,-200.0,0.00018099,10]
[357577097,1744195832391,-200.0,0.00018099,10]
[357577099,1744195832401,-200.0,0.00018099,10]
[357577101,1744195832411,-200.0,0.00018099,10]
[357577103,1744195832420,-200.0,0.00018099,10]
[357577105,1744195832430,-200.0,0.00018099,10]
[357577107,1744195832440,-200.0,0.00018099,10]
[357577109,1744195832450,-200.0,0.00018099,10]
[357577111,1744195832459,-200.0,0.00018099,10]
[357577113,1744195832468,-200.0,0.00018099,10]
[357577115,1744195832478,-200.0,0.00018099,10]
[357577117,1744195832487,-200.0,0.00018099,10]
[357577119,1744195832499,-200.0,0.00018099,10]
[357577121,1744195832509,-200.0,0.00018099,10]
[357577123,1744195832518,-200.0,0.00018099,10]
[357577125,1744195832528,-200.0,0.00018099,10]
[357577127,1744195832537,-200.0,0.00018099,10]
[357577129,1744195832547,-200.0,0.00018099,10]
[357577131,1744195832559,-200.0,0.00018099,10]
[357577134,1744195832570,-200.0,0.00018099,10]
[357577136,1744195832579,-200.0,0.00018099,10]
[357577138,1744195832589,-200.0,0.00018099,10]
[357577140,1744195832599,-200.0,0.00018099,10]
[357577142,1744195832608,-200.0,0.00018099,10]
[357577144,1744195832618,-200.0,0.00018099,10]
[357577146,1744195832627,-200.0,0.00018099,10]
[357577148,1744195832637,-200.0,0.00018099,10]
[357577149,1744195832650,-183.670048,0.00018099,10]
[357577151,1744195832659,-160.0,0.00018099,10]
[357577153,1744195832669,-165.125763,0.00018099,2]
[357577155,1744195832678,-165.125763,0.00018099,2]
[357577158,1744195832688,-165.125763,0.00018099,2]
[357577160,1744195832698,-165.125763,0.00018099,2]
[357577162,1744195832708,-165.125763,0.00018099,2]
[357577164,1744195832717,-165.125763,0.00018099,2]
[357577166,1744195832727,-18845.57263334,0.00018099,2]
[357577168,1744195832740,-606.84252089,0.00018099,2]
[357577807,1744195845992,-800.52800614,0.00018098,3]
[357577947,1744195848105,-235.47126483,0.00018098,3]
[357581497,1744195885856,200.0,0.00017999,10]
[357581533,1744195886193,200.0,0.00017999,10]
[357581569,1744195886519,200.0,0.00017999,10]
[357581603,1744195886839,200.0,0.00017999,10]
[357581639,1744195887178,200.0,0.00017999,10]
[357581674,1744195887500,200.0,0.00017999,10]
[357581710,1744195887837,200.0,0.00017999,10]
[357581746,1744195888172,200.0,0.00017999,10]
[357581792,1744195888755,200.0,0.00017999,10]
[357581821,1744195889024,200.0,0.00017999,10]
[357581833,1744195889127,200.0,0.00017999,10]
[357581867,1744195889439,200.0,0.00017999,10]
[357581902,1744195889754,200.0,0.00017999,10]
[357581936,1744195890056,200.0,0.00017999,10]
[357581981,1744195890460,200.0,0.00017999,10]
[357582022,1744195890852,200.0,0.00017999,10]
[357582057,1744195891164,200.0,0.00017999,10]
[357582075,1744195891485,200.0,0.00017999,10]
[357582107,1744195891783,200.0,0.00017999,10]
[357582142,1744195892106,200.0,0.00017999,10]
[357582177,1744195892434,200.0,0.00017999,10]
[357582214,1744195892780,200.0,0.00017999,10]
[357582253,1744195893141,200.0,0.00017999,10]
[357582288,1744195893465,200.0,0.00017999,10]
[357582327,1744195893842,200.0,0.00017999,10]
[357582365,1744195894360,200.0,0.00017999,10]
[357582405,1744195894734,200.0,0.00017999,10]
[357582441,1744195895058,200.0,0.00017999,10]
[357582509,1744195896002,200.0,0.00017999,10]
[357582531,1744195896315,200.0,0.00017999,10]
[357582554,1744195896639,200.0,0.00017999,10]
[357582576,1744195896957,200.0,0.00017999,10]
[357582593,1744195897425,200.0,0.00017999,10]
[357582631,1744195897772,200.0,0.00017999,10]
[357582651,1744195898224,200.0,0.00017999,10]
[357582652,1744195898994,200.0,0.00017999,10]
[357582653,1744195899289,200.0,0.00017999,10]
[357582654,1744195899608,200.0,0.00017999,10]
[357582655,1744195899920,200.0,0.00017999,10]
[357582660,1744196644123,-246.6045531,0.00017093,2]
[357582661,1744196644147,-9.12818607,0.00017899,2]
[357582662,1744196644734,-255.73273917,0.00017899,2]
[357582679,1744196913968,-155.17778575,0.00016998,2]
[357582728,1744197032088,-155.17778575,0.00016828,2]
[357582730,1744197032098,-155.47547465,0.00016998,2]
[357582732,1744197032108,-10.4796391,0.00017898,2]
[357582735,1744197032140,-356.81326498,0.00017898,2]
[357582737,1744197032150,-351.76245731,0.00017898,2]
[357582739,1744197032161,-852.51205294,0.00017899,2]
[357582741,1744197032170,-852.5120529,0.00017899,2]
[357582742,1744197032179,-852.5120529,0.000179,2]
[357582744,1744197032188,-554.92167628,0.000179,2]
[357582936,1744197038242,-351.76245731,0.00017898,2]
[357582938,1744197038252,-297.59037662,0.000179,2]
[357582940,1744197038262,-852.5120529,0.000179,2]
[357582942,1744197038271,-250.0,0.00017971,2]
[357582944,1744197038281,-300.0,0.00017972,2]
[357582946,1744197038290,-300.0,0.00017972,2]
[357582948,1744197038301,-414.50904082,0.00017973,2]
[357582950,1744197038310,-500.0,0.00017973,2]
[357582952,1744197038320,-428.65693785,0.00017973,2]
[357582954,1744197038333,-500.0,0.00017973,2]
[357582956,1744197038344,-500.0,0.00017973,2]
[357582958,1744197038354,-500.0,0.00017973,2]
[357582960,1744197038364,-500.0,0.00017973,2]
[357582963,1744197038374,-219.66371751,0.00017973,2]
[357582965,1744197038383,-500.0,0.00017973,2]
[357582967,1744197038393,-500.0,0.00017973,2]
[357582969,1744197038403,-380.32902865,0.00017973,2]
[357582971,1744197038412,-500.0,0.00017973,2]
[357582973,1744197038422,-500.0,0.00017998,2]
[357582975,1744197038431,-500.0,0.00017998,2]
[357582977,1744197038441,-408.98464165,0.00017998,2]
[357582979,1744197038451,-500.0,0.00017998,2]
[357582981,1744197038461,-217.27278331,0.00017998,2]
[357582983,1744197038471,-220.93889171,0.00017998,2]
[357582985,1744197038480,-649.36424907,0.00017998,2]
[357582987,1744197038490,-245.86057271,0.00017998,2]
[357582989,1744197038499,-160.0,0.00017998,2]
[357582991,1744197038509,-1234.70132625,0.00017999,2]
[357582993,1744197038523,-3997.8847675,0.00017999,2]
[357582996,1744197038537,-1367.60178171,0.00017999,2]
[357583171,1744197040454,-13127.057666,0.00017999,2]
[357583421,1744197042941,238.99,0.00010959,2]
[357583767,1744197046158,-367.29290408,0.00017998,2]
[357583769,1744197046169,-733.77928381,0.00017999,2]
[357583772,1744197046215,-7724.7,0.00017999,2]
[357584595,1744197055679,-367.29290408,0.00017998,2]
[357584597,1744197055689,-287.70117725,0.00017998,2]
[357584599,1744197055699,-11864.81943478,0.00017999,2]
[357584601,1744197055710,-9803.75800486,0.00017999,2]
[357586278,1744197108262,-197.21342181,0.00017798,2]
[357586279,1744197186303,-273.46169017,0.00016998,2]
[357586280,1744197242765,-156.72050417,0.00016977,2]
[357586281,1744197285564,261.01,2.56e-05,3]
[357586282,1744197285593,238.99,2.56e-05,3]
[357586284,1744197881937,-1318.98363383,0.00016977,2]
[357586285,1744197881963,-182.32661903,0.00016998,2]
[357586286,1744197881988,-6.62685733,0.00017798,2]
[357586287,1744197882012,-250.0,0.00017798,2]
[357586288,1744197882037,-300.0,0.00017872,2]
[357586289,1744197895641,250.0,0.00016877,2]
[357586290,1744197903249,300.0,0.00017872,2]
[357586291,1744197960850,191.514559,0.0001698,2]
[357586292,1744197963458,121.54833081,0.00017872,2]
[357586293,1744198034152,1000.0,0.00025,120]
[357586302,1744198075016,-250.0,0.00016877,2]
[357586303,1744198075060,-34.38949717,0.0001748,2]
[357586304,1744198083017,-186.4443479,0.00017478,2]
[357586305,1744198104529,188.0,0.0002,120]
[357586306,1744198120496,1054.95085365,0.0002,120]
[357586307,1744198122887,4170.68980172,0.00025,120]
[357586308,1744198126850,-164.9835011,0.000175,4]
[357586310,1744198127962,561.392562,0.0002,120]
[357586312,1744198168949,-160.0,0.00016777,2]
[357586336,1744198232339,-90.0,0.00016777,2]
[357586337,1744198232349,-54.62399868,0.000175,4]
[357586339,1744198232362,-414.1104975,0.000175,4]
[357586340,1744198233043,-227.91,0.000175,4]
[357586350,1744198238321,-237.37849072,0.000175,4]
[357586351,1744198238331,-300.0,0.00017872,2]
[357586352,1744198238341,-500.69045636,0.00017873,2]
[357586353,1744198238352,-500.0,0.00017873,2]
[357586354,1744198238361,-500.0,0.00017873,2]
[357586355,1744198238370,-500.0,0.00017873,2]
[357586356,1744198238380,-500.0,0.00017873,2]
[357586357,1744198238389,-500.0,0.00017873,2]
[357586358,1744198238398,-210.43057469,0.00017873,2]
[357586359,1744198238408,-500.0,0.00017873,2]
[357586360,1744198238419,-500.0,0.00017873,2]
[357586361,1744198238428,-500.0,0.00017873,2]
[357586362,1744198238438,-500.0,0.00017873,2]
[357586363,1744198238447,-500.0,0.00017873,2]
[357586364,1744198238456,-500.0,0.00017873,2]
[357586365,1744198238465,-1110.90492768,0.00017873,2]
[357586368,1744198240596,-0.00303588,0.00017873,2]
[357586426,1744198247063,-3086.58042802,0.00017873,2]
[357586427,1744198247072,-151.0,0.00017888,2]
[357586428,1744198247082,-179.16615493,0.00017897,2]
[357586429,1744198247091,-449.6883446,0.00017897,2]
[357586430,1744198247101,-500.0,0.00017897,2]
[357586431,1744198247110,-644.36388243,0.00017897,2]
[357586432,1744198247120,-500.0,0.00017897,2]
[357586433,1744198247129,-500.0,0.00017897,2]
[357586434,1744198247139,-500.0,0.00017897,2]
[357586435,1744198247148,-500.0,0.00017897,2]
[357586436,1744198247159,-500.0,0.00017897,2]
[357586437,1744198247168,-172.1024009,0.00017897,2]
[357586438,1744198247178,-454.55497435,0.00017897,2]
[357586439,1744198247187,-160.0,0.00017898,2]
[357586440,1744198247198,-2458.53748241,0.00017898,3]
[357586441,1744198247207,-837.59699578,0.00017898,3]
[357586442,1744198247216,-160.0,0.00017898,3]
[357586443,1744198247226,-21001.76354602,0.00017898,3]
[357586444,1744198247241,-7223.00806328,0.00017898,3]
[357586445,1744198247251,-38928.26789404,0.00017898,2]
[357586446,1744198247261,-8186.09339365,0.00017899,2]
[357586447,1744198247275,-7178.78601831,0.00017899,2]
[357586448,1744198342841,1000.0,0.00018,120]
[357586474,1744198513538,-273.95575854,0.00016898,2]
[357586475,1744198550691,-168.60478842,0.00016891,2]
[357586477,1744198563810,-300.0,0.0001689,2]
[357586481,1744198595773,-168.96331788,0.00016891,2]
[357586483,1744198623427,-160.0,0.0001689,2]
[357586484,1744198633482,-140.0,0.0001689,2]
[357586485,1744198633608,-12.0,0.00016891,2]
[357586486,1744198744106,-169.801801,0.0001689,2]
[357586490,1744198803090,-158.56468884,0.0001689,2]
[357586491,1744198811125,-161.10924802,0.000162,2]
[357586493,1744198863222,-250.0,0.000162,2]
[357586494,1744198874918,-300.0,0.0002,20]
[357586495,1744198877234,-300.0,0.0002,20]
[357586496,1744198878121,-167.45536451,0.000162,2]
[357586497,1744198881519,-300.0,0.0002,20]
[357586519,1744198923768,-154.80629526,0.000162,2]
[357586532,1744198933360,-175.9051293,0.000162,2]
[357586534,1744198955202,-90.72396291,0.000162,2]
[357586535,1744198955224,-63.16253901,0.00016791,2]
[357586536,1744198966973,-97.94670901,0.00016791,2]
[357586537,1744198966996,-61.21736025,0.000168,2]
[357586538,1744198977715,-159.36337947,0.00016881,2]
[357586539,1744198983459,-164.24057411,0.00016881,2]
[357586545,1744198995878,-193.2661,0.00016881,2]
[357586546,1744199007493,-164.24057411,0.0001688,2]
[357586547,1744199043315,-158.56468884,0.000161,2]
[357586548,1744199043341,-26.39025762,0.0001688,2]
[357586549,1744199043365,-37.79593754,0.00016881,2]
[357586550,1744199090212,-151.06293082,0.00016012,2]
[357586551,1744199103501,-277.6304593,0.00016012,2]
[357586552,1744199205135,1000.0,0.00025,120]
[357586553,1744199230849,-154.79522588,0.00016012,2]
[357586554,1744199230872,-133.38365682,0.00016881,2]
[357586555,1744199232555,-156.62859419,0.00016881,2]
[357586557,1744199324051,-330.53520302,0.00016012,2]
[357586558,1744199324075,-29.93631598,0.0001689,2]
[357586559,1744199336567,-169.56636792,0.00016881,2]
[357586560,1744199345159,-230.15819044,0.00016881,2]
[357586567,1744199404099,-159.17044552,0.00016881,2]
[357586615,1744199438473,-6195.87000699,0.00016881,2]
[357586617,1744199438484,-300.0,0.0001689,2]
[357586619,1744199438496,-14507.0997973,0.00016891,2]
[357586620,1744199438507,-1830.7169027,0.00016898,2]
[357586621,1744199438527,-36783.00391706,0.00016898,2]
[357586622,1744199438538,-453.3645564,0.0001698,2]
[357586623,1744199438548,-288.1788827,0.0001698,2]
[357586624,1744199438558,-200.0,0.0001728,2]
[357586625,1744199438567,-250.0,0.000174,2]
[357586626,1744199438577,-344.10675764,0.00017773,2]
[357586627,1744199438587,-384.93068297,0.00017773,2]
[357586628,1744199438596,-500.0,0.00017773,2]
[357586629,1744199438605,-500.0,0.00017773,2]
[357586630,1744199438615,-500.0,0.00017773,2]
[357586631,1744199438624,-500.0,0.00017773,2]
[357586632,1744199438634,-500.0,0.00017773,2]
[357586633,1744199438643,-500.0,0.00017773,2]
[357586634,1744199438653,-500.0,0.00017773,2]
[357586635,1744199438666,-500.0,0.00017773,2]
[357586637,1744199438679,-500.0,0.00017773,2]
[357586638,1744199438688,-500.0,0.00017773,2]
[357586639,1744199438698,-500.0,0.00017773,2]
[357586640,1744199438709,-151.0,0.00017788,2]
[357586641,1744199438718,-318.18848205,0.00017797,2]
[357586642,1744199438728,-366.490301,0.00017798,2]
[357586643,1744199438739,-366.490301,0.00017798,2]
[357586644,1744199438749,-151.0,0.00017798,2]
[357586645,1744199438758,-151.0,0.00017798,2]
[357586646,1744199438767,-157.170433,0.00017798,2]
[357586647,1744199438777,-151.0,0.00017798,2]
[357586648,1744199438786,-151.0,0.00017798,2]
[357586649,1744199438796,-157.146063,0.00017798,2]
[357586650,1744199438805,-1165.45026,0.00017798,2]
[357586651,1744199438815,-1165.45026,0.00017798,2]
[357586652,1744199438825,-1165.45026,0.00017798,2]
[357586653,1744199438835,-1165.45026,0.00017798,2]
[357586654,1744199438845,-4116.04174205,0.00017798,2]
[357586655,1744199438863,-911.86799482,0.00017798,2]
[357586668,1744199441089,-0.00154802,0.0001689,2]
[357586669,1744199441371,-404.92777225,0.0001689,2]
[357586670,1744199441380,-38.49383742,0.00017798,2]
[357586689,1744199443615,-6716.20842471,0.00017798,2]
[357586740,1744199655648,-159.3633795,0.0001698,2]
[357586741,1744199655670,-28.50859411,0.00017,2]
[357586742,1744199671008,-217.05282668,0.00017673,2]
[357586747,1744199831999,-151.10456751,0.00017,2]
[357586748,1744199867743,-360.471519,0.00016769,2]
[357586749,1744199873072,-250.0,0.00016769,2]
[357586752,1744199895393,-70.6709354,0.00016769,2]
[357586753,1744199895417,-229.3290646,0.00017,2]
[357586754,1744199933241,-152.394547,0.00016754,2]
[357586755,1744199944447,-155.0,0.00016754,2]
[357586756,1744200003164,-243.8844498,0.00016754,2]
[357586758,1744200063450,-141.2736882,0.00016754,2]
[357586759,1744200063483,-13.7263118,0.00016999,2]
[357586760,1744200088146,-287.1933,0.00016726,2]
[357586764,1744200139431,-151.10456751,0.00016718,2]
[357586765,1744200184714,-210.69165395,0.00016718,2]
[357586766,1744200245524,-227.88329054,0.00016718,2]
[357586767,1744200245702,-37.76246865,0.00016726,2]
[357586768,1744200304416,-16.80270685,0.00016726,2]
[357586769,1744200304448,-142.36773867,0.00016999,2]
[357586770,1744200424508,-224.52615328,0.00016999,2]
[357586771,1744200484500,-186.90510313,0.00016999,2]
[357586772,1744200505239,-191.90544578,0.00016642,2]
[357586773,1744200543802,-18.78620812,0.00016642,2]
[357586774,1744200543828,-161.44955088,0.00016999,2]
[357586775,1744200546533,-264.3595,0.0001698,2]
[357586825,1744200608581,-151.10456751,0.000169,2]
[357586826,1744200608605,-22.8338,0.0001698,2]
[357586827,1744200608628,-9.4158733,0.00016999,2]
[357586833,1744200632638,-290.5841267,0.00016999,2]
[357586834,1744200632648,-1619.56636789,0.00017,2]
[357586835,1744200632657,-2000.0,0.00017,2]
[357586836,1744200632666,-2000.0,0.00017,2]
[357586837,1744200632676,-775.7696132,0.00017116,2]
[357586838,1744200632685,-1006.26377707,0.000175,2]
[357586839,1744200632694,-288.31549912,0.00017598,2]
[357586840,1744200632703,-288.31549911,0.00017599,2]
[357586841,1744200632712,-288.31549911,0.00017599,2]
[357586842,1744200632721,-288.31549911,0.000176,2]
[357586843,1744200632730,-288.31549911,0.000176,2]
[357586844,1744200632739,-500.0,0.00017673,2]
[357586845,1744200632748,-500.0,0.00017673,2]
[357586846,1744200632758,-500.0,0.00017673,2]
[357586847,1744200632766,-500.0,0.00017673,2]
[357586848,1744200632776,-500.0,0.00017673,2]
[357586849,1744200632785,-426.74241427,0.00017673,2]
[357586850,1744200632794,-500.0,0.00017673,2]
[357586851,1744200632803,-500.0,0.00017673,2]
[357586852,1744200632812,-500.0,0.00017673,2]
[357586853,1744200632898,-32.94717332,0.00017673,2]
[357586854,1744200632930,-222.73193743,0.00017697,2]
[357586855,1744200632940,-27241.1804815,0.00017698,2]
[357586871,1744200638612,-7628.2928,0.00017698,2]
[357586877,1744200641164,-0.00512914,0.00017698,2]
[357586896,1744200644559,-24995.51750576,0.00017698,2]
[357586897,1744200644570,-16017.54387497,0.00017698,3]
[357586898,1744200644580,-837.59699578,0.00017698,3]
[357586899,1744200644590,-160.0,0.00017698,3]
[357586900,1744200644600,-5910.41938452,0.00017698,2]
[357586901,1744200644610,-370000.0,0.00017698,2]
[357586902,1744200644620,-153.0,0.000177,2]
[357586903,1744200644630,-680.8286151,0.00017751,2]
[357586905,1744200644640,-500.0,0.00017773,2]
[357586906,1744200644650,-500.0,0.00017773,2]
[357586907,1744200644660,-502.86896368,0.00017773,2]
[357586908,1744200644670,-151.0,0.00017788,2]
[357586909,1744200644680,-200.0,0.00017788,2]
[357586910,1744200644691,-151.0,0.00017798,2]
[357586911,1744200644701,-155.712246,0.00017798,2]
[357586912,1744200644711,-151.0,0.00017798,2]
[357586913,1744200644721,-151.0,0.00017798,2]
[357586914,1744200644731,-151.0,0.00017798,2]
[357586915,1744200644741,-151.0,0.00017798,2]
[357586916,1744200644751,-151.0,0.00017798,2]
[357586917,1744200644761,-151.0,0.00017798,2]
[357586918,1744200644771,-151.0,0.00017798,2]
[357586919,1744200644781,-211.95948,0.00017798,2]
[357586920,1744200644791,-175.800413,0.00017798,2]
[357586921,1744200644802,-170.44517,0.00017798,2]
[357586922,1744200644812,-170.44517,0.00017798,2]
[357586923,1744200644822,-170.44517,0.00017798,2]
[357586924,1744200644832,-170.44517,0.00017798,2]
[357586925,1744200644843,-151.0,0.00017798,2]
[357586926,1744200644852,-151.0,0.00017798,2]
[357586927,1744200644862,-156.580366,0.00017798,2]
[357586928,1744200644872,-179.285747,0.00017798,2]
[357586929,1744200644882,-179.285747,0.00017798,2]
[357586930,1744200644892,-151.0,0.00017798,2]
[357586931,1744200644902,-151.0,0.00017798,2]
[357586932,1744200644912,-151.0,0.00017798,2]
[357586933,1744200644922,-151.0,0.00017798,2]
[357586934,1744200644932,-1341.565155,0.00017798,2]
[357586935,1744200644947,-1341.565155,0.00017798,2]
[357586936,1744200644958,-151.0,0.00017798,2]
[357586937,1744200644968,-151.0,0.00017798,2]
[357586938,1744200644979,-151.0,0.00017798,2]
[357586939,1744200644989,-151.345051,0.00017798,2]
[357586940,1744200644999,-151.0,0.00017798,2]
[357586941,1744200645010,-151.0,0.00017798,2]